Workbook

Sheet Loan Calculator
G3: NON-REGULATED BRIDGE CALCULATOR
C5: Effective from 12th June 2025
D7: Name | M7: Exit:
D8: Security Address | M8: Purpose:
C11: Proposed Loan (Inputs in blue) | H11: Loan Outputs | M11: ="Rental Calculations"&IF(Workings!$B$34=1," (Not Required for HOBL)","") -> Rental Calculations
C13: Security | D13: First Charge - Purchase | H13: Net Loan | K13: =IFERROR(IF(F21<Workings!B24,"Below Min",IF(F21>Workings!B23,"Above Max",IF(ISERROR(VLOOKUP(Workings!B15,Workings!A84:H149,5,FALSE)),"No Plan",F21))),"") -> 350000 | M13: Max MT CMI on rent | P13: =IFERROR(IF(F33="Serviced",IF(P17<=(F45/Workings!B18),((F45/Workings!B18)-F55),"Fails Rental"),"Rolled"),"") -> Rolled
C15: Loan Plan | D15: BTL / Holiday Let Bridge | H15: ="Lender Fee"&IF(F27>0," (inc Title Insurance)","") -> Lender Fee (inc Title Insurance) | K15: =IF(D25="Added",F25+Workings!I19,0) -> 11499 | M15: MT proposed CMI | P15: =IF(F33="Serviced",SUM(K21),"Rolled") -> Rolled
C17: Rate Type | D17: Fixed for Term | H17: Broker Fee | K17: =IF(OR(F23>F21*10%,F23>10000),"Too High",IF(D23="Added",F23,0)) -> 0 | M17: Total Secured CMIs | P17: =IF(F33="Serviced",IF(AND(Workings!B16="First charge",F55>0),"Remove RED",SUM(F55+P15)),"Rolled") -> Rolled
C19: Status Points | D19: 0 | F19: Packaged | H19: Gross Loan | K19: =SUM(K17,K15,K13) -> 361499 | M19: DSCR | P19: =IF(F33="Serviced",IFERROR(SUM(F45/P17),""),"Rolled") -> Rolled
C21: Net Loan | F21: 350000 | H21: =IF(F33="Serviced","Monthly Payment","Month 1 Interest (approx)") -> Month 1 Interest (approx) | K21: =IF(F29="","Add Term",IFERROR(ROUND((K19*Workings!B29),IF(F33="serviced",2,0)),"")) -> 3651 | M21: Stressed Shortfall? | P21: =IF(F33="Serviced",IFERROR(IF((P23*DSCR)-F45<0,"Fits Rent", SUM((P23*DSCR)-F45)),""),"Rolled") -> Rolled
C23: Broker fee | D23: Added | H23: =IF(F33="Serviced","Monthly Payment (Stressed)","Interest Over Term (approx)") -> Interest Over Term (approx) | K23: =IF(F29="","Add Term",IFERROR(IF(F33="Serviced",IF(RIGHT(D15,5)="fixed",IFERROR(ROUND(K19*Workings!B29,2),""),IFERROR(ROUND(K19*(Workings!B29+(Stress/12)),2),"")),ROUNDUP(K19*((1+Workings!B29)^F29)-K19,0)),"")) -> 46332 | M23: Total Secured CMIs Stressed | P23: =IF(F33="Serviced",IFERROR(K23+F57,""),"Rolled") -> Rolled
C25: Lender Fee | D25: Added | F25: =IFERROR(ROUND((Workings!B32*F21)+Workings!B33,2),0) -> 10500 | H25: =IF(F33="Serviced","Total Interest","Total Loan (approx inc Interest)") -> Total Loan (approx inc Interest) | K25: =IFERROR(IF(F33="Serviced",IFERROR(K21*F29,""),K19+K23),"") -> 407831 | M25: DSCR Stressed (1%) | P25: =IF(F33="Serviced",IFERROR(SUM(F45/(F57+K23)),""),"Rolled") -> Rolled
C27: =IF(LEFT(D13,1)="S","", IF(LEFT(F41,1)="N","", IF(Workings!I23="NO","", "Title Insurance"))) -> Title Insurance | D27: Yes | F27: =Workings!I19 -> 999 | H27: LTV | K27: =IFERROR(IF(AND(Workings!B16="First charge",F53>0),"Remove RED",IF(OR(Workings!B13="Y",Workings!B14="Y"),"Add First charge",ROUNDUP(SUM(IF(F33="Serviced",K19,K25),F53)/F39,3))),"") -> 0.816
C29: Term in Months | F29: 12 | M29: Maximum Loan Calculator
C31: =IF(LEFT(D17,5)="fixed","Monthly/Annual Rate (fixed)","Monthly/Annual Rate (variable)") -> Monthly/Annual Rate (fixed) | F31: =IFERROR(IF(Workings!B164="Y","No Plan",IFERROR(VLOOKUP(Workings!B15,Workings!A84:H149,IF(LEFT(D17,5)="Fixed",8,7),FALSE)*100&"% / "&VLOOKUP(Workings!B15,Workings!A84:H149,IF(LEFT(D17,5)="Fixed",8,7),FALSE)*1200&"%","No Plan")),"") -> No Plan | H31: Fees | M31: Maximum LTV Available | P31: =IFERROR(Workings!B37,"") -> 0.75
C33: Repayment Type | F33: Rolled | H33: Is Borrower a Limited Co? | K33: No | M33: Maximum Lending (Net) £ | P33: =IFERROR(Workings!C161,"") -> 322716
H35: Is Property Leasehold? | K35: No
C37: Property Details (Inputs) | H37: Approx Legal Fee * | K37: =IF(AND(D13="first charge - other",LEFT(F41,2)="No"),VLOOKUP(K13,Workings!B55:E58,3,TRUE)+IF(VLOOKUP(K13,Workings!B55:E58,3,TRUE)=0,0,IF(K33="yes",LTD,0))+IF(VLOOKUP(K13,Workings!B55:E58,3,TRUE)=0,0,IF(K35="yes",Lease,0)),IF(OR(Workings!B16="Second Charge",AND(Workings!B38="N",F21<=100000)),0,IF(OR(K35="",K33=""),"Complete Above",VLOOKUP(K13,Workings!B55:E58,3,TRUE)+IF(VLOOKUP(K13,Workings!B55:E58,3,TRUE)=0,0,IF(K33="yes",LTD,0))+IF(VLOOKUP(K13,Workings!B55:E58,3,TRUE)=0,0,IF(K35="yes",Lease,0))))) -> 1800 | M37: Notes
C39: Property value | F39: 500000 | H39: Approx Valuation Fee ** | K39: =IF(OR(F39="",F39=0),"Add Val",IF(F41="Mainland Scotland",IF(D19=Workings!G6,"Refer",VLOOKUP(F39,Workings!H61:J72,3,TRUE)),VLOOKUP(F39,Workings!B61:E80,IF(LEFT(D19,3)="hea",4,3),TRUE))) -> 350 | M39: =IFERROR(VLOOKUP(1,Workings!A165:C187,3,FALSE),"")&CHAR(10)&IFERROR(VLOOKUP(2,Workings!A165:C187,3,FALSE),"")&CHAR(10)&IFERROR(VLOOKUP(3,Workings!A165:C187,3,FALSE),"")&CHAR(10)&IFERROR(VLOOKUP(4,Workings!A165:C187,3,FALSE),"")&CHAR(10)&IFERROR(VLOOKUP(5,Workings!A165:C187,3,FALSE),"")&CHAR(10)&IFERROR(VLOOKUP(6,Workings!A165:C187,3,FALSE),"")&CHAR(10)&IFERROR(VLOOKUP(7,Workings!A165:C187,3,FALSE),"") -> LTV restricted to 75% due to plan
C41: Property Location | F41: England | H41: Fees include VAT
C43: Property Type | F43: Other | H43: * Additional legal costs may apply, particularly if purchase ** Val fee based on standard residential property
C45: Rental Income
C47: First charge Repayment Type
C49: First charge Fix Rate Remain | H49: Broker Income
C51: First charge Rem Term (m) | H51: Commission rate | K51: 0.02
C53: First charge Balance | H53: Commission | K53: =F21*K51 -> 7000
C55: First charge CMI | H55: Broker fee | K55: =F23 -> 0 | M55: Tel: 0800 032 5282
C57: First charge Stressed CMI | F57: =IF(F49<>"Fixed >5yr",IFERROR(IF(F47="Repayment",PMT(RATE(F51,F55,-F53)+(Workings!B17/12),F51,-F53),F53*((F55/F53)+(Workings!B17/12))),0),F55) -> 0 | H57: Total income | K57: =SUM(K55+K53) -> 7000 | M57: Email: referrals@mercantiletrust.co.uk
C60: FALSE

Sheet Workings (hidden)
A1: Drop Downs
A3: Fee Type | B3: Location | C3: Rate Type | D3: Plan | E3: Prop Type | F3: Plan LTV | G3: Status Points | H3: Service Type | I3: Security | K3: 1st Type | L3: 1st rate | M3: Purpose | N3: Broker Fee Type | O3: Term
A4: Added | B4: England | C4: =IF(LEFT('Loan Calculator'!D15,7)="Express","","Variable") -> Variable | E4: Ex C'cil Flat / Mais | F4: 0.75 | G4: 0 | H4: Rolled | I4: First Charge - Purchase | J4: Yes | K4: Repayment | L4: Variable | M4: Purchase | N4: Percentage | O4: 1
A5: Up-Front | B5: Wales | C5: Fixed for Term | D5: BTL / Holiday Let Bridge | E5: Freehold Flat | F5: 0.7 | G5: 1 | H5: Serviced | I5: First Charge - Other | J5: No | K5: Interest Only | L5: Fixed <5yr | M5: Refurbishment | N5: Amount | O5: 2
B6: =IF(LEFT('Loan Calculator'!D15,7)="Express","","Mainland Scotland") -> Mainland Scotland | D6: Equitable Charge Bridge | E6: Other | F6: 0.6 | G6: 2 | I6: Second Charge | L6: Fixed >5yr | M6: Consolidation | O6: 3
B7: =IF(LEFT('Loan Calculator'!D15,7)="Express","","Northern Ireland") -> Northern Ireland | D7: =IF(B14="First charge","","HO Business Loan") -> HO Business Loan | M7: Business | O7: 4
M8: Lease extension | O8: 5
M9: Other | O9: 6
A10: Other calculated | O10: 7
O11: 8
A12: Size | B12: =IF('Loan Calculator'!F21>Workings!B23,"TOO HIGH","OK") -> OK | O12: 9
A13: 2nd Ch bal | B13: =IF(AND(B16="Second charge",'Loan Calculator'!F53=0),"Y","OK") -> OK | O13: 10
A14: 2nd Ch CMI | B14: =IF(AND(B16="Second charge",'Loan Calculator'!F55=0),"Y","OK") -> OK | H14: Title Insurance | O14: 11
A15: Plan Code | B15: =B16&" "&'Loan Calculator'!D19 &" SP" -> First Charge 0 SP | H15: % | I15: 0.002 | O15: 12
A16: First / Second | B16: =IFERROR(LEFT('Loan Calculator'!D13,FIND("-",'Loan Calculator'!D13)-2),'Loan Calculator'!D13) -> First Charge | H16: Min | I16: 495 | O16: 13
A17: Stress Test pa | B17: 0.01 | H17: IPT | I17: 0.12 | O17: 14
A18: Max DSCR | B18: =B19 -> 1.25 | H18: Gross for TI | I18: ='Loan Calculator'!F21+IF('Loan Calculator'!D25="Added",'Loan Calculator'!F25,0)+IF('Loan Calculator'!D23="Added",'Loan Calculator'!F23,0) -> 360500 | O18: 15
A19: DSCR BTL | B19: 1.25 | H19: This Loan | I19: =IF('Loan Calculator'!D27="NO",0, IF(I23="NO",0, IF(I20="NORTHERN IRELAND",0, IF(I24="SECOND CHARGE",0, IF('Loan Calculator'!F21>300000,999,699))))) -> 999 | O19: 16
A20: DSCR Comm | B20: 1.4 | C20: Max Loan (net) | H20: Property Location | I20: ='Loan Calculator'!F41 -> England | O20: 17
C21: Plan | D21: Equitable charge | E21: Express | F21: NI | H21: Security | I21: =RIGHT('Loan Calculator'!D13,8) -> Purchase | O21: 18
C22: =VLOOKUP(B15,A84:H149,5,FALSE) -> 500000 | D22: =IF(LEFT('Loan Calculator'!D15,5)="Equit",100000,C22) -> 500000 | E22: =IF(AND('Loan Calculator'!D13="First Charge - Other",B28=TRUE),1000000,C22) -> 500000 | F22: =IF(LEFT('Loan Calculator'!F41,3)="Nor",150000,C22) -> 500000 | H22: Loan Value | I22: ='Loan Calculator'!F21 -> 350000
A23: Max Loan all | B23: =MIN(C22:F22) -> 500000 | C23: =IF(C22=MIN(C22:F22),1,"") -> 1 | D23: =IF(D22<$C$22,1,"") ->  | E23: =IF(E22<$C$22,1,"") ->  | I23: =IF(AND(I21<>"Purchase",I22<=100000),"NO","YES") -> YES
A24: min loan | B24: =VLOOKUP(B15,A84:H149,4,FALSE) -> 25000 | H24: Security | I24: ='Loan Calculator'!D13 -> First Charge - Purchase
A25: NI Max LTV | B25: 0.7
A26: Overall Max LTV | B26: 0.75
A28: Express | B28: ='Loan Calculator'!C60 -> FALSE
A29: Plan Rate | B29: =IFERROR(VLOOKUP(Workings!B15,Workings!A84:H149,IF(LEFT('Loan Calculator'!D17,5)="Fixed",8,7),FALSE),"No Plan") -> 0.0101 | G29: Fees | H29: % | I29: £
G30: Normal | H30: 0.03
C31: £ Fees | G31: Equitable charge | H31: 0.04 | I31: 499
A32: This L Fee % | B32: =IF(LEFT('Loan Calculator'!D15,5)="Equit",H31,H30) -> 0.03 | C32: NI | D32: Express Fee | E32: Equitable charge | G32: Express | I32: 999
A33: This L Fee £ | B33: =SUM(C33:E33) -> 0 | C33: =IF(AND(LEFT('Loan Calculator'!F41,2)="No",'Loan Calculator'!D13="Second Charge"),I33,0) -> 0 | D33: =IF(B28=TRUE,I32,0) -> 0 | E33: =IF(LEFT('Loan Calculator'!D15,5)="Equit",I31,0) -> 0 | G33: NI | I33: 899 | J33: seconds only
A34: Is HO Business | B34: =IF(LEFT('Loan Calculator'!D15,3)="HO ",1,"") -> 
A35: HO Business Min | C35: Max LTV
B36: This quote | C36: Property Value | D36: Location | E36: Plan | F36: Property Type | G36: Equitable charge | H36: Property value Max LTV
A37: Plan max LTV | B37: =MIN(C37:G37) -> 0.75 | C37: =IFERROR(IF('Loan Calculator'!F39=0,"",VLOOKUP('Loan Calculator'!F39,Workings!H37:I40,2,TRUE)),0) -> 0.75 | D37: =IF(LEFT('Loan Calculator'!F41,3)="Nor",B25,B26) -> 0.75 | E37: =IFERROR(VLOOKUP(B15,A84:F149,6,FALSE),0) -> 0.75 | F37: =IF('Loan Calculator'!F43=Workings!E4,IF('Loan Calculator'!F39>=150000,75%,65%),IF('Loan Calculator'!F43=Workings!E5,65%,75%)) -> 0.75 | G37: =IF(LEFT('Loan Calculator'!D15,5)="Equit",0.7,0.75) -> 0.75
A38: is Purchase | B38: =IF(ISERROR(FIND("Purchase",'Loan Calculator'!D13)),"N","Y") -> Y | C38: =IF(AND(C37=MIN($C$37:$G$37),C37<MAX($C$37:$G$37)),1,"") ->  | D38: =IF(AND(D37=MIN($C$37:$G$37),D37<MAX($C$37:$G$37)),1,"") ->  | E38: =IF(AND(E37=MIN($C$37:$G$37),E37<MAX($C$37:$G$37)),1,IF(E37=MIN(C37:G37),1,"")) -> 1 | H38: 75000 | I38: 0.75
H39: 1000001 | I39: 0.7
H40: 1500001 | I40: 0.65
A43: Legal Fees
A44: Limited co | B44: =250*1.2 -> 300
A45: Leasehold | B45: =250*1.2 -> 300
A47: Legal Fees | D47: Residential | E47: Commercial
A48: First charge | B48: Loan min | C48: Loan max | D48: fee
B49: 0 | C49: 250000 | D49: 840 | E49: 1020
B50: =C49+1 -> 250001 | C50: 500000 | D50: 960 | E50: 1140
B51: =C50+1 -> 500001 | C51: 750000 | D51: 1050 | E51: 1230
B52: =C51+1 -> 750001 | C52: 1000000 | D52: 1110 | E52: 1290
B53: =C52+1 -> 1000001 | D53: 1200 | E53: 1380
D54: 0 | E54: 0
A55: Bridging | B55: 0 | C55: 0 | D55: 0 | E55: 0
B56: =C55+1 -> 1 | C56: 500000 | D56: =1500*1.2 -> 1800 | E56: 1980
B57: =C56+1 -> 500001 | C57: 1000000 | D57: =1750*1.2 -> 2100 | E57: 2280
B58: =C57+1 -> 1000001 | C58: 9999999999 | D58: 2400 | E58: 2580
A60: Valuation | B60: Value min | C60: Value Max | D60: Fee | E60: Heavy Refurb | G60: Valuation | H60: Value min | I60: Value Max | J60: Fee
A61: E&W | B61: 0 | C61: 200000 | D61: 220 | E61: 445 | G61: Scot | H61: 0 | I61: 100000 | J61: 245
B62: =C61+1 -> 200001 | C62: 300000 | D62: 250 | E62: 495 | H62: =I61+1 -> 100001 | I62: 200000 | J62: 285
B63: 300001 | C63: 350000 | D63: 275 | E63: 575 | H63: 200001 | I63: 300000 | J63: 335
B64: 350001 | C64: 400000 | D64: 280 | E64: 575 | H64: 300001 | I64: =I63+100000 -> 400000 | J64: 400
B65: 400001 | C65: 500000 | D65: 350 | E65: 620 | H65: 400001 | I65: =I64+100000 -> 500000 | J65: 475
B66: 500001 | C66: 600000 | D66: 490 | E66: 695 | H66: 500001 | I66: =I65+100000 -> 600000 | J66: 620
B67: 600001 | C67: 700000 | D67: 600 | E67: 755 | H67: 600001 | I67: =I66+100000 -> 700000 | J67: 630
B68: 700001 | C68: 800000 | D68: 700 | E68: 825 | H68: 700001 | I68: 750000 | J68: 700
B69: 800001 | C69: 900000 | D69: 775 | E69: 900 | H69: 750001 | I69: 800000 | J69: 860
B70: 900001 | C70: 1000000 | D70: 850 | E70: 1000 | H70: 800001 | I70: =I69+100000 -> 900000 | J70: 865
B71: 1000001 | C71: =C70+200000 -> 1200000 | D71: On request | E71: 1200 | H71: 900001 | I71: =I70+100000 -> 1000000 | J71: 890
B72: 1200001 | C72: =C71+200000 -> 1400000 | D72: On request | E72: 1350 | H72: 1000001 | I72: 99999999 | J72: On request
B73: 1400001 | C73: =C72+200000 -> 1600000 | D73: On request | E73: 1550
B74: 1600001 | C74: =C73+200000 -> 1800000 | D74: On request | E74: 1700
B75: 1800001 | C75: =C74+200000 -> 2000000 | D75: On request | E75: 1850
B76: 2000001 | C76: =C75+500000 -> 2500000 | D76: On request | E76: 2500
B77: 2500001 | C77: =C76+500000 -> 3000000 | D77: On request | E77: 2800
B78: 3000001 | C78: =C77+1000000 -> 4000000 | D78: On request | E78: 3300
B79: 4000001 | C79: =C78+1000000 -> 5000000 | D79: On request | E79: 3800
B80: 5000001 | C80: 9999999999 | D80: On request | E80: On request
A83: Plan Matrix | D83: Min Loan | E83: Max Loan | F83: Max LTV | G83: V Rate | H83: F Rate | I83: £fee | J83: %fee
A84: First Charge 0 SP | D84: ='Summary Matrix'!E4 -> 25000 | E84: ='Summary Matrix'!F4 -> 500000 | F84: ='Summary Matrix'!G4 -> 0.75 | G84: ='Summary Matrix'!H4 -> 0.0099 | H84: ='Summary Matrix'!I4 -> 0.0101
A85: First Charge 1 SP | D85: ='Summary Matrix'!E5 -> 25000 | E85: ='Summary Matrix'!F5 -> 500000 | F85: ='Summary Matrix'!G5 -> 0.7 | G85: ='Summary Matrix'!H5 -> 0.0101 | H85: ='Summary Matrix'!I5 -> 0.0103
A86: First Charge 2 SP | D86: ='Summary Matrix'!E6 -> 25000 | E86: ='Summary Matrix'!F6 -> 250000 | F86: ='Summary Matrix'!G6 -> 0.65 | G86: ='Summary Matrix'!H6 -> 0.0103 | H86: ='Summary Matrix'!I6 -> 0.0105
A87: Second Charge 0 SP | D87: ='Summary Matrix'!E7 -> 25000 | E87: ='Summary Matrix'!F7 -> 300000 | F87: ='Summary Matrix'!G7 -> 0.75 | G87: ='Summary Matrix'!H7 -> 0.0101 | H87: ='Summary Matrix'!I7 -> 0.0103
A88: Second Charge 1 SP | D88: ='Summary Matrix'!E8 -> 25000 | E88: ='Summary Matrix'!F8 -> 250000 | F88: ='Summary Matrix'!G8 -> 0.7 | G88: ='Summary Matrix'!H8 -> 0.0103 | H88: ='Summary Matrix'!I8 -> 0.0105
A89: Second Charge 2 SP | D89: ='Summary Matrix'!E9 -> 25000 | E89: ='Summary Matrix'!F9 -> 100000 | F89: ='Summary Matrix'!G9 -> 0.65 | G89: ='Summary Matrix'!H9 -> 0.0105 | H89: ='Summary Matrix'!I9 -> 0.0107
A151: Maximum Lending | B151: Small | E151: Rolled Loan
A152: Plan (S/L) | B152: =B15 -> First Charge 0 SP | E152: Gross | F152: ='Loan Calculator'!K19 -> 361499
A153: Rate (S/L) | B153: =B29 -> 0.0101 | E153: Interest
A154: Max Sec Lend end | B154: =('Loan Calculator'!F39*Workings!B37)-'Loan Calculator'!F53 -> 375000
A155: Max Sec Lend start | B155: =IF('Loan Calculator'!F33="Rolled",ROUNDDOWN(B154/POWER(1+B153,'Loan Calculator'!F29),0),B154) -> 332398
C156: max fee
A157: Br Fee % | B157: 0 | C157: 0
A158: Lender fee % | B158: =IF('Loan Calculator'!D25<>"added",0,B32) -> 0.03
A159: Fixed Br Fee | B159: =IF('Loan Calculator'!D23="added",'Loan Calculator'!F23,0) -> 0 | C159: =B159 -> 0
A160: Fixed Lender Fee | B160: =IF('Loan Calculator'!D25<>"added",0,B33) -> 0
A161: Max Net | B161: =MIN(ROUNDDOWN((B155-B159-B160)/(1+B157+B158),0),Workings!B23) -> 322716 | C161: =MIN(ROUNDDOWN((B155-IF(C159="X",0,C159)-B160)/(1+IF(C157="x",0,C157)+B158),0),Workings!B23) -> 322716
A163: Warnings
A164: No Plan | B164: =IF(F165<>0,"Y","") -> Y
A165: 0 | B165: Applies | C165: Warnings | D165: Notes | F165: =SUM(F166:F180) -> 1
A166: =A165+IF(C166="",0,1) -> 0 | B166: =IF(Workings!C37=0,1,"") ->  | C166: =IF(B166=1,D166,"") ->  | D166: Property value below minimim | F166: =IF(C166="","",1) -> 
A167: 0 | B167: =IF(AND(LEFT('Loan Calculator'!D15,5)="Equit",G38=1,'Loan Calculator'!K27>G37),1,"") ->  | D167: ="LTV restricted to "&G37*100&"% on equitable charge" -> LTV restricted to 75% on equitable charge | F167: =IF(C167="","",1) -> 
A168: 0 | B168: =IF(AND(F38=1,'Loan Calculator'!K27>F37),1,"") ->  | D168: ="LTV restricted to "&F37*100&"% due to property type" -> LTV restricted to 75% due to property type
A169: 1 | B169: =IF(AND(E38=1,'Loan Calculator'!K27>E37,'Loan Calculator'!K27<>""),1,"") -> 1 | C169: LTV restricted to 75% due to plan | D169: ="LTV restricted to "&E37*100&"% due to plan" -> LTV restricted to 75% due to plan | F169: 1
A170: 1 | B170: =IF(AND(D38=1,'Loan Calculator'!K27>D37),1,"") ->  | D170: ="LTV restricted to "&D37*100&"% due to location" -> LTV restricted to 75% due to location
A171: 1 | B171: =IF(AND(C38=1,'Loan Calculator'!K27>C37,B166<>1),1,"") ->  | D171: ="LTV restricted to "&C37*100&"% due to property value" -> LTV restricted to 75% due to property value
A172: 1 | B172: =IF(AND(LEFT('Loan Calculator'!D15,5)="Equit",'Loan Calculator'!F21>100000),1,"") ->  | C172: =IF(B172=1,D172,"") ->  | D172: Max net loan £100,000 on equitable charge
A173: =A172+IF(C173="",0,1) -> 1 | B173: =IF(AND(LEFT('Loan Calculator'!D15,5)="Equit",OR(LEFT('Loan Calculator'!F41,3)="Mai",LEFT('Loan Calculator'!F41,3)="Nor")),1,"") ->  | D173: Equitable charge only in England and Wales
A174: 1
A175: 1 | B175: =IF(AND(B28=TRUE,LEFT('Loan Calculator'!F41,3)="Nor"),1,"") ->  | D175: Packaged only in England, Wales or Scotland
A176: 1
A177: 1 | B177: =IF(AND(F23=1,'Loan Calculator'!F21>F22),1,"") ->  | D177: Maximum net loan £150,000 in Northern Ireland
A178: 1 | B178: =IF(AND(C23=1,'Loan Calculator'!F21>C22),1,"") ->  | D178: ="Maximum net loan for plan £"&C22/1000&",000" -> Maximum net loan for plan £500,000
A179: 1 | B179: =IF(AND(LEFT('Loan Calculator'!D15,2)="HO",Workings!B16="First charge"),1,"") ->  | D179: HOBL only on second charges
A180: 1 | B180: =IF(AND(LEFT('Loan Calculator'!D15,5)="Equit",B16="First Charge"),1,"") ->  | C180: =IF(B180=1,D180,"") ->  | D180: Equitable charge on second charges only
A181: 1 | B181: =IF(B28=TRUE,1,"") ->  | D181: On Packaged there may be additional charges for NCI or Field Connect
A182: 1
A183: 1
A184: 1
A185: 1
A186: 1

Sheet Heads of Terms
B3: ="Date: "&IF('Loan Calculator'!D4="","",DAY('Loan Calculator'!D4)&"/"&MONTH('Loan Calculator'!D4)&"/"&YEAR('Loan Calculator'!D4)) -> Date:
B4: Our Ref:
B6: Introducer Name:
B8: Heads of Terms
B10: Thank you for your enquiry. We are pleased to confirm that based on the information provided to us, the application is acceptable in principle and this outlines the facility that we may be able to provide together with some of the terms and conditions that will apply.
B12: Applicant Name: | C12: =IF('Loan Calculator'!E7="","",'Loan Calculator'!E7) -> 
B13: If the application is being made by a Limited Company, please note that all directors/shareholders in the business will need to provide a personal guarantee. Also a debenture over the property.
B14: Security Address: | C14: =IF('Loan Calculator'!E8="","",'Loan Calculator'!E8) -> 
B16: Advised Estimated Valuation of: | C16: =IF('Loan Calculator'!F39="","",'Loan Calculator'!F39) -> 500000
B17: Other Security Address:
B19: Advised Estimated Valuation of: | C19: £
B21: Product: | C21: ='Loan Calculator'!D15 & " - Bridge - "& 'Loan Calculator'!D19&"SP" -> BTL / Holiday Let Bridge - Bridge - 0SP
B22: Loan Purpose: | C22: =IF('Loan Calculator'!N8="","Not stated",'Loan Calculator'!N8) -> Not stated
B23: Loan Term: | C23: ='Loan Calculator'!F29&IF('Loan Calculator'!F29=1," month"," months ") -> 12 months
B24: =IF(LEFT('Loan Calculator'!D17,5)="fixed","Monthly / Annual Interest Rate (fixed for term):","Monthly / Annual Interest Rate (variable):") -> Monthly / Annual Interest Rate (fixed for term): | C24: ='Loan Calculator'!F31 -> No Plan
B25: Net Loan: | C25: ='Loan Calculator'!F21 -> 350000
B26: Gross Loan: | C26: ='Loan Calculator'!K19 -> 361499
B27: Where detailed below, fees are included in the gross loan amount and will be deducted from the advance on completion.
B28: Repayment Method: | C28: ='Loan Calculator'!F33 -> Rolled
B29: =IF('Loan Calculator'!F33="rolled","Rolled Interest (Approximate):", "Monthly Interest") -> Rolled Interest (Approximate): | C29: =IF('Loan Calculator'!F33="rolled",'Loan Calculator'!K23, 'Loan Calculator'!K21) -> 46332
B30: =IF('Loan Calculator'!F33="rolled","", "Monthly serviced interest payments will cover interest only, the full capital balance will not be reduced throughout the term. ") -> 
B32: Exit Strategy: | C32: =IF('Loan Calculator'!N7="","Not stated",'Loan Calculator'!N7) -> Not stated
B33: Total Repayable at the End of the Loan Term including Discharge Fee (Approximate): | C33: =IFERROR(C26+C35+IF('Loan Calculator'!F33="rolled",C29, 0),"") -> 408076
B34: Early Repayment Charge: | C34: None
B35: Discharge Fee: | C35: 245
B36: Late Redemption Penalty: | C36: 5% of the opening balance
B38: Fees (if added to the mortgage these will be deducted from the gross loan amount on completion):
B40: Broker Fee: | C40: ='Loan Calculator'!F23 -> 0
B41: =IF('Loan Calculator'!D23="added","You have asked for this fee to be added to your loan, it will therefore be interest bearing. This will be deducted from the gross loan on completion and paid to your Broker.", "You have chosen to pay your Broker this fee up front.") -> You have asked for this fee to be added to your loan, it will therefore be interest bearing. This will be deducted from the gross loan on completion and paid to your Broker.
B42: Lender Fee: | C42: ='Loan Calculator'!F25 -> 10500
B43: =IF('Loan Calculator'!D25="added","You have asked for this fee to be added to your loan, it will therefore be interest bearing. This will be deducted from the gross loan on completion.", "You have chosen to pay this fee up front. This must be paid to us before the mortgage completes.") -> You have asked for this fee to be added to your loan, it will therefore be interest bearing. This will be deducted from the gross loan on completion.
B44: Valuation Fee, only payable if does not pass AVM: (not included in gross loan) | C44: ='Loan Calculator'!K39 -> 350
B45: Including VAT. Paid directly to the valuer. Based on the estimated property value
B46: =IF(LEFT('Loan Calculator'!D13,12)="First charge","Legal Fee:","") -> Legal Fee: | C46: =IF(LEFT('Loan Calculator'!D13,12)="First charge",'Loan Calculator'!K37,"") -> 1800
B47: =IF(LEFT('Loan Calculator'!D13,12)="First charge","Including VAT. This fee is for 1st charges Only. Prior to commencement of legal due diligence, the borrowers solicitor"&" will be required to provide our solicitor with an undertaking to pay its accrued legal fees in full, whether or not the loan completes. This fee may change once solicitors are instructed and work has begun.","") -> Including VAT. This fee is for 1st charges Only. Prior to commencement of legal due diligence, the borrowers solicitor will be required to provide our solicitor with an undertaking to pay its accrued legal fees in full, whether or not the loan completes. This fee may change once solicitors are instructed and work has begun.
B48: Commission: | C48: ='Loan Calculator'!K53 -> 7000
B49: This is the amount we will pay to your broker upon completion. This does not form part of the loan agreement
B51: These Heads of Terms are valid for 14 days from the date of issue
B53: Please note that interest on your loan will be charged on a daily rate based on the actual number of days in any month. As the number of days in a month differ from month to month, we have assumed that there are 30.4 days (365 days/12) in each month for the purpose of this illustration. This means the actual interest charged (and therefore your final repayment instalment) may be higher than illustrated.
B54: This is not a formal loan offer. These figures are based on un-verified information that has been provided to us. Mercantile Trust Ltd will only be able to provide the applicant with a formal loan offer when we are in receipt of and satisfied with the following requirements:
B56: · Fully completed and signed application pack.
B57: · Proof of 12 months' mortgage or rent history (if not on the credit search).
B58: · The most recent bank statement showing the rent being received.
B59: · Certified valid identity – Passport or Driving Licence (if the customer fails our electronic ID check).
B60: · Certified proof of address for last 3 years – Up to date Council tax bill. Bank or building society statement, utility bill, dated within the last 2 months. (if not on the electoral roll on the credit search).
B61: · Where refurbishment forms part of the exit strategy but not included in the advance, proof of refurbishment funds will be required (typically by receipt of a bank statement).
B62: · Full Residential Property Valuation with a valuer on Mercantile Trust Ltd panel.
B63: · If the property is currently rented;
B64: o A copy of the most recent Energy Performance Certificate rated E or above.
B65: o Copy of current tenancy agreement(s).
B66: o Proof the tenancy deposit is in a recognised scheme.
B67: · We can accept no-search indemnity insurance where the matter proceeds as a refinance and there have been no works carried out to the property in the last 12 months, otherwise full searches will be required. Full searches will always be required on purchase applications and must not be more than six months old at completion.
B68: · Confirmation of the exit strategy is required.
B69: · Copy of building insurance schedule with Mercantile Trust Ltd’s interest noted for 1st charges– Reinstatement value required.
B70: All documentation to be emailed to mortgagedesk@mercantiletrust.co.uk
B72: Please note the following will be conducted by Mercantile Trust Ltd:
B74: · Pre-Completion call to be completed with all applicants.
B75: · Equifax credit search to be conducted on all properties.
B78: Valuation: where the applicant is ready to proceed the valuation can be instructed via:
B80: Pure Panel Management: 0191 214 2459 - residential properties only
B81: VAS Panel Management: 01642 262 217 - refurbishment, residential & commercial properties
B83: Solicitors: Mercantile Trust Ltd will instruct solicitors when our underwriting criteria has been satisfied.
B85: Mercantile Trust Ltd is unable to lend where this mortgage would become a regulated mortgage contract under current FCA rules.
B87: Property Type: Mercantile Trust Ltd will consider loans on all types of residential properties although certain properties may have LTV restrictions imposed. Please refer to our current matrix. The property types outlined below are ineligible for our product range.
B88: · A property that is non-traditional and not suitable to the area
B89: · Grade I or II* (star) listed properties.
B90: · Shared ownership/Housing Association properties
B91: · Properties valued at less than £75,000
B92: · Maximum LTVs apply for the following: Freehold Flats max LTV 65%, Ex Local Authority flats/maisonettes under £150k max LTV 65%,
B93: Properties over £1.5m max LTV 65%, Properties over £1m max LTV 70%.
B94: · Properties where potential environmental damage exists
B95: · Leasehold properties with less than 50 years remaining

Sheet Aff. Calculator
B2: MERCANTILE TRUST BRIDGING AFFORDABILITY MODEL
B3: ='Loan Calculator'!C5 -> Effective from 12th June 2025
B5: Step 1 - Instructions | X5: Step 2 - Applicant Details
B7: To allow accurate an Affordability Decision to be made, it is essential that ALL cells highlighted in light blue are completed in FULL, across Steps 2 to 5. Once these cells have all been accurately completed, a decision will be returned in the 'Affordability Decision' box. To proceed with the application there must be an outcome of Pass. | AA7: Applicant 1 Name
AA9: Applicant 2 Name
AA11: Postcode
B15: Step 3 - Household Size | K15: Step 4 - Monthly Income | T15: Step 5 - Expenditure | AC15: AFFORDABILITY DECISION
B17: In this section please enter the relevant number of Adults/Dependants living in the property. Any Dependants aged 18 or over should be classed as an Adults. | K17: Please enter the Applicant(s) GUARANTEED income on a 'NET' monthly basis. | W17: Residential Mortgage(s) Bal | X17: £ | AF17: Total resi and new | AG17: £ | AH17: =IFERROR(IF(Workings!B34=1,'Loan Calculator'!K23+'Loan Calculator'!F57,0),0) -> 0
W19: Residential Mortgage(s)/Rent Pmt | X19: £ | AF19: Total Outgoings | AG19: £ | AH19: =IFERROR(IF(Workings!B34<>1,(Y19+Y21+Y37),Y37+AH17),"") -> 0
N21: Applicant 1 - £ | O21: 5000 | W21: BTL Loan shortfall | X21: £ | Y21: =IFERROR(IF(D47>=0,"0.00",D48),0) -> 0 | AF21: Total Net Income | AG21: £ | AH21: =N45 -> 5000
F23: Number of Adults | G23: 1 | N23: Applicant 2 - £ | T23: In the section below please provide details on the monthly outgoings that will not be cleared with the proceeds of this loan. Please note that no further details are required on expenditures other than those listed below. | AF23: Outcome | AH23: =X58 -> TBC
F25: Number of Dependants | G25: 0 | K25: Please enter the gross annual income for the entire household | AC25: =IF(W58=99,H117,IF(W58=0,H114,IF(W58=1,H116,IF(W58=2,H115)))) -> Applicant's Household income (gross and net) must be entered for a successful affordability decision to be made.
F27: =IF(OR(H83=0,H83=99)," ",IF(OR(H83=1,H83=2,H83=3,H83=4,H83=5),"Age in years of Dependant 1 "," ")) -> 
F29: =IF(OR(H83=0,H83=99)," ",IF(OR(H83=2,H83=3,H83=4,H83=5),"Age in years of Dependant 2 "," ")) ->  | N29: GROSS ANNUAL Income - £
F31: =IF(OR(H83=0,H83=99)," ",IF(OR(H83=3,H83=4,H83=5),"Age in years of Dependant 3 "," ")) ->  | W31: Credit Cards | X31: £
J32: Our mandated underwriters can be reached on: 0800 032 5282
F33: =IF(OR(H83=0,H83=99)," ",IF(OR(H83=4,H83=5),"Age in years of Dependant 4 "," ")) ->  | W33: Unsecured Credit | X33: £
F35: =IF(OR(H83=0,H83=99)," ",IF(OR(H83=5),"Age in years of Dependant 5 "," ")) ->  | J35: mortgagedesk@mercantiletrust.co.uk | W35: School Fees / Childcare / Other | X35: £ | AC35: ONS Cost | AG35: £ | AH35: =W56 -> 843.03
B37: =IF(OR(H74="TBC",H74=99,H83="TBC",H83=99),F56,IF(H64>H65,F56,IF(H65>H64,F59," "))) ->  | T37: TOTAL CREDIT COMMITMENTS NOT . BEING CLEARED WITH THIS LOAN £ | Y37: =SUM(Y31:Z36) -> 0 | AC37: Surplus | AG37: £ | AH37: =N45-SUM(Y19,N48,Y21,Y37,AH35) -> 4156.97
B38: =IF(J85="N",H56,IF(J86="N",H57,IF(H64>H65,H59,IF(H65>H64,H60," ")))) -> 
AC39: Mortgage Buffer | AH39: =N48 -> 0
D44: Rental | J44: Total Net Outputs | U44: ONS Calculation
C45: PMT * DSCR | D45: ='Loan Calculator'!P23*DSCR ->  | J45: Net Income | N45: =O21+O23 -> 5000 | W45: No | X45: Factor | Z45: Score
C46: actual rent | D46: =SUM('Loan Calculator'!F45) -> 0 | U46: 1st Adult | W46: 1 | X46: ='ONS Figures'!B4 -> 1 | Z46: =W46*X46 -> 1
C47: surplus | D47: =SUM(D46-D45) ->  | J47: Mortgage Buffer | U47: Other Adult | W47: =G23-W46 -> 0 | X47: ='ONS Figures'!B5 -> 0.7 | Z47: =W47*X47 -> 0
C48: negative surplus | D48: =SUM(D47-D47)-D47 ->  | J48: 0.01 | N48: =(Y17*J48)/12 -> 0 | U48: Older | W48: =COUNTIF(G27:G36,">16") -> 0 | X48: ='ONS Figures'!B6 -> 0.67 | Z48: 0
U49: Younger | W49: =G25-W48 -> 0 | X49: ='ONS Figures'!B7 -> 0.33 | Z49: 0
U50: Total | Z50: =SUM(Z46:Z49) -> 1
U51: Buffer | Z51: ='ONS Figures'!B8 -> 150
U52: Quintile | W52: =VLOOKUP(O29,'ONS Figures'!L4:N8,3,TRUE) -> 1
U53: Model | W53: =IF(G25>0,"A56",IF(G23=1,"A26","A29")) -> A26
U54: Lookup code | W54: ="Q"&W52&W53 -> Q1A26
C55: Screen Validation | U55: 1st adult | W55: =HLOOKUP(W54,'ONS Figures'!C12:U33,22,FALSE) -> 693.03
F56: Please Complete: | H56: Please enter the Number of Household Adults. | U56: Family | W56: =(W55*Z50)+Z51 -> 843.03
H57: Please enter the Number of Household Dependants.
H58: Please enter the Number of Household Adults & Dependants. | U58: Outcome | W58: =IF(I125>0,99,IF(AH37>0,1,0)) -> 99 | X58: =IF(I125>0,"TBC",IF(W58=99,"TBC",IF(W58=0,"FAIL",IF(W58=1,"PASS",IF(W58=2,"FAIL"))))) -> TBC
F59: Warning!!! | H59: Please enter the Ages of the Dependants.
H60: Too many Ages entered for the number of dependants selected.
F64: Deps Total | H64: =G25 -> 0
F65: Ages Entered Count | H65: =COUNT(G27,G29,G31,G33,G35) -> 0
F68: Number of adults | H68: TBC
H69: 1
H70: 2
H71: 3
H72: 4
H73: 5
G74: Score | H74: =IF(G23="",99,IF(G23="TBC",99,IF(G23=1,1,IF(G23=2,2,IF(G23=3,3,IF(G23=4,4,IF(G23=5,5))))))) -> 1
F76: Number of dependants | H76: TBC
H77: 0
H78: 1
H79: 2
H80: 3
H81: 4
H82: 5
G83: Score | H83: =IF(G25="",99,IF(G25="TBC",99,IF(G25=0,0,IF(G25=1,1,IF(G25=2,2,IF(G25=3,3,IF(G25=4,4,IF(G25=5,5)))))))) -> 0
H85: Adults field completed? | J85: =IF(OR(H74="",H74="TBC",H74=99),"N","Y") -> Y
H86: Dependants field completed? | J86: =IF(OR(H83="",H83="TBC",H83=99),"N","Y") -> Y
F93: Pass Msg | G93: This application has passed the DTI decision, as it is below the maximum threshold of 55%.
F94: Fail Msg | G94: This application has failed the DTI decision, as it is above the maximum threshold of 55%.
F95: TBC Msg | G95: =IF(I97=0,K97,IF(I98=0,K98,IF(I99=0,K99," "))) -> Applicant's Household income (gross and net) must be entered for affordability decision to be made.
F96: Fields Completed
F97: Income | I97: =IF(J144>0,1,0) -> 0 | K97: Applicant's Household income (gross and net) must be entered for affordability decision to be made.
F98: Mortgage | I98: =IF(Y19>0,1,0) -> 0 | K98: Applicant's Mortgage Payment must be entered for affordability decision to be made.
F99: Loan | I99: =IF(Y21>0,1,0) -> 0 | K99: Applicant's Proposed MTL Loan Payment must be entered for affordability decision to be made.
F100: Unsecured | I100: =IF(Y37>0,1,0) -> 0
H101: Total | I101: =COUNTIF(I97:I99,1) -> 0
F108: AFFORDABILITY DECISION
F114: Display | H114: This application has failed the affordability decision, as the available income is not sufficient to cover the outgoings detailed, and based upon national averages, still leave sufficient money to cover all other expenditures in a sustainable manner for the life of the loan.
H115: This application has failed the affordability decision, as the available income is not sufficient to cover the outgoings detailed, and based upon national averages, still leave sufficient money to cover all other expenditures in a sustainable manner for the life of the loan.
H116: This application has passed the affordability decision, and no further documentation is required to support the affordability on this application.
H117: =IF(I121="N",K121,IF(I122="N",K122,IF(I123="N",K123,IF(I124="N",K124," ")))) -> Applicant's Household income (gross and net) must be entered for a successful affordability decision to be made.
G119: Fields Completed
G121: Household Size | I121: =IF(B38=" ","Y","N") -> Y | K121: Applicant's Household size must be entered for a successful affordability decision to be made.
G122: Income | I122: =IF(AND(O21>0,O29>0),"Y","N") -> N | K122: Applicant's Household income (gross and net) must be entered for a successful affordability decision to be made.
G123: Mortgage | I123: =IF(LEFT('Loan Calculator'!D15,2)="HO","Y",IF(Y19<>"","Y","N")) -> N | K123: Applicant's Mortgage Payment must be entered for a successful affordability decision to be made.
G124: Loan | I124: =IF(Y21>0,"Y","N") -> N | K124: Applicant's Proposed MT Rental shortfall amount must be entered for a successful affordability decision to be made.
H125: Total | I125: =COUNTIF(I121:I124,"N") -> 3
F131: Commitment Types
F132: Please Select…
F133: School Fees
F134: Medical Expenses
F135: Credit Card
F136: Loan
F137: Hire Purchase
F138: Other

Sheet Summary Matrix (hidden)
H2: Rate (Monthly)
B3: Plan Matrix | E3: Min Loan | F3: Max Loan | G3: Max LTV | H3: Variable | I3: Fixed for Term
B4: First Charge 0 SP | E4: 25000 | F4: 500000 | G4: 0.75 | H4: 0.0099 | I4: 0.0101
B5: First Charge 1 SP | E5: 25000 | F5: 500000 | G5: 0.7 | H5: 0.0101 | I5: 0.0103
B6: First Charge 2 SP | E6: 25000 | F6: 250000 | G6: 0.65 | H6: 0.0103 | I6: 0.0105
B7: Second Charge 0 SP | E7: 25000 | F7: 300000 | G7: 0.75 | H7: 0.0101 | I7: 0.0103
B8: Second Charge 1 SP | E8: 25000 | F8: 250000 | G8: 0.7 | H8: 0.0103 | I8: 0.0105
B9: Second Charge 2 SP | E9: 25000 | F9: 100000 | G9: 0.65 | H9: 0.0105 | I9: 0.0107
B11: For full details please see our Broker Portal
B12: https://www.mercantiletrust.co.uk/intermediary-portal/Account/Login

Sheet ONS Figures (hidden)
A1: Updated 04.2025
A3: Multiple | B3: Factor | D3: Quintile | E3: 1 | F3: 2 | G3: 3 | H3: 4 | I3: 5 | L3: from (y) | M3: From (m)
A4: 1st adult | B4: 1 | D4: a26 | E4: 1 | F4: 1 | G4: 1 | H4: 1 | I4: 1 | K4: 1 | L4: 0 | N4: 1
A5: Ad adult | B5: 0.7 | D5: a29 | E5: 1.7 | F5: 1.7 | G5: 1.7 | H5: 1.7 | I5: 1.7 | K5: 2 | L5: 19760 | M5: =L5/12 -> 1646.666667 | N5: 2
A6: Older ch 17-18 | B6: 0.67 | D6: a56 | E6: 1.809070295 | F6: 2.169547325 | G6: 2.350953984 | H6: 2.462782294 | I6: 2.548837209 | K6: 3 | L6: 32604 | M6: =L6/12 -> 2717 | N6: 3
A7: young ch 0-16 | B7: 0.33 | K7: 4 | L7: 48516 | M7: 4043 | N7: 4
A8: Buffer | B8: 150 | K8: 5 | L8: 73008 | M8: 6084 | N8: 5
A10: Monthly 1st adult | C10: Pasted Values
C11: Q1 | G11: Q2 | K11: Q3 | O11: Q4 | S11: Q5
C12: =C11&C13 -> Q1A26 | D12: =C11&D13 -> Q1A29 | E12: =C11&E13 -> Q1A56 | G12: =G11&G13 -> Q2A26 | H12: =G11&H13 -> Q2A29 | I12: =G11&I13 -> Q2A56 | K12: =K11&K13 -> Q3A26 | L12: =K11&L13 -> Q3A29 | M12: =K11&M13 -> Q3A56 | O12: =O11&O13 -> Q4A26 | P12: =O11&P13 -> Q4A29 | Q12: =O11&Q13 -> Q4A56 | S12: =S11&S13 -> Q5A26 | T12: =S11&T13 -> Q5A29 | U12: =S11&U13 -> Q5A56
C13: A26 | D13: A29 | E13: A56 | G13: A26 | H13: A29 | I13: A56 | K13: A26 | L13: A29 | M13: A56 | O13: A26 | P13: A29 | Q13: A56 | S13: A26 | T13: A29 | U13: A56
A33: Total first adult cost (CT AA) | C33: 693.03 | D33: 700.51 | E33: 552.52 | G33: 908.4 | H33: 794.5 | I33: 629.11 | K33: 1081.75 | L33: 847.96 | M33: 672.13 | O33: 1315.51 | P33: 975.26 | Q33: 755.65 | S33: 1582.28 | T33: 1228.77 | U33: 934.8
